fUST/lending_fUST_20250723
["ID","MTS","AMOUNT","RATE_DAILY","PERIOD"]
[374380162,1753283442960,-460.0,0.00020547,2]
[374380164,1753283442970,-460.0,0.00020547,2]
[374380166,1753283442979,-460.0,0.00020547,2]
[374380168,1753283442989,-2363.56,0.00020547,2]
[374380170,1753283442999,-460.0,0.00020547,2]
[374380172,1753283443008,-2072.7,0.00020547,2]
[374380174,1753283443018,-460.0,0.00020547,2]
[374380176,1753283443027,-460.0,0.00020547,2]
[374380178,1753283443037,-460.0,0.00020547,2]
[374380180,1753283443046,-460.0,0.00020547,2]
[374380182,1753283443055,-460.0,0.00020547,2]
[374380184,1753283443065,-460.0,0.00020547,2]
[374380186,1753283443074,-1586.54,0.00020547,2]
[374380188,1753283443084,-1711.56,0.00020547,2]
[374380190,1753283443095,-460.0,0.00020547,2]
[374380194,1753283443105,-460.0,0.00020547,2]
[374380196,1753283443114,-460.0,0.00020547,2]
[374380198,1753283443124,-2071.11,0.00020547,2]
[374380199,1753283443134,-460.0,0.00020547,2]
[374380201,1753283443144,-460.0,0.00020547,2]
[374380203,1753283443156,-460.0,0.00020547,2]
[374380205,1753283443166,-564.07,0.00020547,2]
[374380207,1753283443176,-460.0,0.00020547,2]
[374380210,1753283443186,-460.0,0.00020547,2]
[374380212,1753283443195,-891.31,0.00020547,2]
[374380214,1753283443205,-448.326,0.00020685,2]
[374380217,1753283443215,-160.0,0.00020707,2]
[374380219,1753283443224,-500.0,0.00020716,2]
[374380220,1753283443233,-1500.0,0.00020771,2]
[374380222,1753283443243,-420.0,0.00020782,2]
[374380224,1753283443253,-460.0,0.00020821,2]
[374380226,1753283443262,-460.0,0.00020821,2]
[374380228,1753283443272,-460.0,0.00020821,2]
[374380230,1753283443282,-460.0,0.00020821,2]
[374380232,1753283443291,-460.0,0.00020821,2]
[374380234,1753283443300,-460.0,0.00020821,2]
[374380236,1753283443309,-467.67,0.00020821,2]
[374380238,1753283443319,-8042.37,0.00020821,2]
[374380240,1753283443329,-460.0,0.00020821,2]
[374380242,1753283443339,-460.0,0.00020821,2]
[374380245,1753283443348,-460.0,0.00020821,2]
[374380247,1753283443357,-460.0,0.00020821,2]
[374380249,1753283443367,-460.0,0.00020821,2]
[374380250,1753283443376,-460.0,0.00020821,2]
[374380252,1753283443385,-460.0,0.00020821,2]
[374380254,1753283443394,-1762.47,0.00020821,2]
[374380256,1753283443416,-460.0,0.00020821,2]
[374380258,1753283443426,-460.0,0.00020821,2]
[374380260,1753283443435,-460.0,0.00020821,2]
[374380262,1753283443445,-460.0,0.00020821,2]
[374380264,1753283443454,-460.0,0.00020821,2]
[374380267,1753283443463,-2363.56,0.00020821,2]
[374380269,1753283443473,-460.0,0.00020821,2]
[374380271,1753283443482,-2072.7,0.00020821,2]
[374380273,1753283443491,-460.0,0.00020821,2]
[374380275,1753283443500,-460.0,0.00020821,2]
[374380277,1753283443510,-460.0,0.00020821,2]
[374380279,1753283443520,-460.0,0.00020821,2]
[374380281,1753283443529,-460.0,0.00020821,2]
[374380283,1753283443539,-460.0,0.00020821,2]
[374380285,1753283443548,-1586.54,0.00020821,2]
[374380287,1753283443558,-1711.56,0.00020821,2]
[374380289,1753283443567,-76.64572728,0.00020821,2]
[374380291,1753283443584,-383.35427272,0.00020821,2]
[374380293,1753283443593,-460.0,0.00020821,2]
[374380295,1753283443602,-460.0,0.00020821,2]
[374380297,1753283443612,-2071.11,0.00020821,2]
[374380299,1753283443621,-460.0,0.00020821,2]
[374380301,1753283443631,-460.0,0.00020821,2]
[374380303,1753283443640,-460.0,0.00020821,2]
[374380305,1753283443649,-564.07,0.00020821,2]
[374380307,1753283443663,-460.0,0.00020821,2]
[374380309,1753283443672,-460.0,0.00020821,2]
[374380311,1753283443681,-891.31,0.00020821,2]
[374380313,1753283443691,-681.31785305,0.00020829,2]
[374380315,1753283443700,-160.0,0.00020974,2]
[374380317,1753283443709,-160.0,0.00020974,2]
[374380319,1753283443719,-160.0,0.00020974,2]
[374380321,1753283443728,-476.696448,0.00020974,2]
[374380323,1753283443738,-160.0,0.00020974,2]
[374380325,1753283443747,-160.0,0.00020974,2]
[374380327,1753283443756,-160.0,0.00020976,2]
[374380329,1753283443765,-160.0,0.00020976,2]
[374380331,1753283443774,-526.15909479,0.00020976,2]
[374380333,1753283443783,-215.84326551,0.00020976,2]
[374380335,1753283443792,-231.11583447,0.00020976,2]
[374380338,1753283443801,-160.0,0.00020976,2]
[374380341,1753283443811,-840.06856235,0.00020976,2]
[374380343,1753283443820,-12622.36869388,0.00020976,2]
[374380345,1753283443829,-214.67886746,0.00020976,2]
[374380347,1753283443838,-160.0,0.00020976,2]
[374380349,1753283443848,-160.0,0.00020976,2]
[374380351,1753283443857,-460.0,0.00021095,2]
[374380353,1753283443866,-460.0,0.00021095,2]
[374380355,1753283443875,-460.0,0.00021095,2]
[374380357,1753283443885,-460.0,0.00021095,2]
[374380359,1753283443894,-460.0,0.00021095,2]
[374380361,1753283443906,-467.67,0.00021095,2]
[374380363,1753283443915,-8042.37,0.00021095,2]
[374380365,1753283443924,-460.0,0.00021095,2]
[374380367,1753283443934,-460.0,0.00021095,2]
[374380369,1753283443943,-460.0,0.00021095,2]
[374380371,1753283443952,-460.0,0.00021095,2]
[374380373,1753283443962,-460.0,0.00021095,2]
[374380375,1753283443971,-460.0,0.00021095,2]
[374380377,1753283443981,-460.0,0.00021095,2]
[374380379,1753283443991,-1762.47,0.00021095,2]
[374380382,1753283444000,-460.0,0.00021095,2]
[374380383,1753283444009,-460.0,0.00021095,2]
[374380385,1753283444019,-460.0,0.00021095,2]
[374380387,1753283444028,-460.0,0.00021095,2]
[374380389,1753283444037,-460.0,0.00021095,2]
[374380391,1753283444047,-2363.56,0.00021095,2]
[374380393,1753283444057,-153.58003465,0.00021095,2]
[374380395,1753283444068,-2072.7,0.00021095,2]
[374380397,1753283444077,-460.0,0.00021095,2]
[374380399,1753283444087,-460.0,0.00021095,2]
[374380402,1753283444100,-460.0,0.00021095,2]
[374380404,1753283444110,-460.0,0.00021095,2]
[374380405,1753283444120,-460.0,0.00021095,2]
[374380406,1753283444140,-460.0,0.00021095,2]
[374380407,1753283444150,-1586.54,0.00021095,2]
[374380408,1753283444165,-1711.56,0.00021095,2]
[374380409,1753283444176,-577.69,0.00021095,2]
[374380410,1753283444185,-460.0,0.00021095,2]
[374380411,1753283444195,-460.0,0.00021095,2]
[374380412,1753283444205,-2071.11,0.00021095,2]
[374380413,1753283444215,-460.0,0.00021095,2]
[374380414,1753283444225,-460.0,0.00021095,2]
[374380415,1753283444235,-460.0,0.00021095,2]
[374380416,1753283444246,-564.07,0.00021095,2]
[374380417,1753283444256,-460.0,0.00021095,2]
[374380418,1753283444265,-460.0,0.00021095,2]
[374380419,1753283444275,-891.31,0.00021095,2]
[374380420,1753283444285,-151.0,0.000211,4]
[374380421,1753283444295,-260.0,0.00021255,2]
[374380422,1753283444305,-500.0,0.00021271,2]
[374380423,1753283444315,-500.0,0.00021319,2]
[374380424,1753283444326,-150.0,0.00021368,2]
[374380425,1753283444336,-460.0,0.00021369,2]
[374380426,1753283444346,-460.0,0.00021369,2]
[374380427,1753283444355,-460.0,0.00021369,2]
[374380428,1753283444365,-460.0,0.00021369,2]
[374380429,1753283444375,-467.67,0.00021369,2]
[374380430,1753283444385,-8042.37,0.00021369,2]
[374380431,1753283444395,-460.0,0.00021369,2]
[374380432,1753283444421,-460.0,0.00021369,2]
[374380433,1753283444432,-460.0,0.00021369,2]
[374380434,1753283444441,-460.0,0.00021369,2]
[374380435,1753283444451,-460.0,0.00021369,2]
[374380436,1753283444461,-460.0,0.00021369,2]
[374380437,1753283444471,-1762.47,0.00021369,2]
[374380438,1753283444480,-460.0,0.00021369,2]
[374380439,1753283444490,-460.0,0.00021369,2]
[374380440,1753283444503,-460.0,0.00021369,2]
[374380441,1753283444517,-186.5,0.00021369,2]
[374380442,1753283444530,-460.0,0.00021369,2]
[374380443,1753283444539,-2363.56,0.00021369,2]
[374380444,1753283444552,-2072.7,0.00021369,2]
[374380445,1753283444562,-460.0,0.00021369,2]
[374380446,1753283444571,-212.19304691,0.00021369,2]
[374380447,1753283444582,-460.0,0.00021369,2]
[374380448,1753283444591,-460.0,0.00021369,2]
[374380449,1753283444601,-460.0,0.00021369,2]
[374380450,1753283444611,-460.0,0.00021369,2]
[374380451,1753283444621,-1586.54,0.00021369,2]
[374380452,1753283444630,-1711.56,0.00021369,2]
[374380453,1753283444640,-460.0,0.00021369,2]
[374380454,1753283444650,-460.0,0.00021369,2]
[374380455,1753283444662,-2071.11,0.00021369,2]
[374380456,1753283444672,-460.0,0.00021369,2]
[374380457,1753283444682,-460.0,0.00021369,2]
[374380458,1753283444691,-460.0,0.00021369,2]
[374380459,1753283444702,-564.07,0.00021369,2]
[374380460,1753283444712,-460.0,0.00021369,2]
[374380461,1753283444722,-891.31,0.00021369,2]
[374380462,1753283444732,-151.0,0.000214,3]
[374380463,1753283444741,-500.0,0.00021458,2]
[374380464,1753283444750,-500.0,0.00021458,2]
[374380465,1753283444759,-621.69907411,0.00021458,2]
[374380466,1753283444769,-2023.9,0.00021536,5]
[374380467,1753283444779,-382.66,0.00021643,2]
[374380470,1753283444792,-460.0,0.00021643,2]
[374380472,1753283444802,-460.0,0.00021643,2]
[374380474,1753283444812,-460.0,0.00021643,2]
[374380476,1753283444821,-467.67,0.00021643,2]
[374380478,1753283444830,-8042.37,0.00021643,2]
[374380480,1753283444840,-460.0,0.00021643,2]
[374380482,1753283444850,-460.0,0.00021643,2]
[374380484,1753283444860,-460.0,0.00021643,2]
[374380486,1753283444870,-460.0,0.00021643,2]
[374380488,1753283444879,-460.0,0.00021643,2]
[374380490,1753283444889,-460.0,0.00021643,2]
[374380492,1753283444899,-1762.47,0.00021643,2]
[374380494,1753283444909,-460.0,0.00021643,2]
[374380496,1753283444919,-460.0,0.00021643,2]
[374380498,1753283444928,-460.0,0.00021643,2]
[374380500,1753283444937,-2363.56,0.00021643,2]
[374380502,1753283444947,-2072.7,0.00021643,2]
[374380503,1753283444957,-460.0,0.00021643,2]
[374380504,1753283444966,-460.0,0.00021643,2]
[374380505,1753283444976,-460.0,0.00021643,2]
[374380508,1753283444985,-460.0,0.00021643,2]
[374380510,1753283444995,-460.0,0.00021643,2]
[374380511,1753283445006,-1586.54,0.00021643,2]
[374380513,1753283445016,-1711.56,0.00021643,2]
[374380516,1753283445025,-460.0,0.00021643,2]
[374380518,1753283445035,-460.0,0.00021643,2]
[374380520,1753283445044,-2071.11,0.00021643,2]
[374380521,1753283445054,-460.0,0.00021643,2]
[374380524,1753283445063,-460.0,0.00021643,2]
[374380526,1753283445074,-460.0,0.00021643,2]
[374380528,1753283445083,-564.07,0.00021643,2]
[374380529,1753283445097,-460.0,0.00021643,2]
[374380530,1753283445268,-891.31,0.00021643,2]
[374380531,1753283445278,-1290.34934213,0.00021667,2]
[374380532,1753283445288,-681.31785305,0.00021705,2]
[374380533,1753283445298,-151.0,0.000218,4]
[374380534,1753283445308,-151.0,0.000218,4]
[374380535,1753283445318,-360.0,0.00021803,2]
[374380536,1753283445328,-500.0,0.00021812,2]
[374380537,1753283445337,-500.0,0.00021819,2]
[374380538,1753283445347,-2023.9,0.0002186,5]
[374380539,1753283445357,-500.0,0.00021917,2]
[374380540,1753283445367,-500.0,0.00021917,2]
[374380541,1753283445377,-500.0,0.00021917,2]
[374380542,1753283445386,-500.0,0.00021917,2]
[374380543,1753283445395,-500.0,0.00021917,2]
[374380544,1753283445405,-500.0,0.00021917,2]
[374380545,1753283445415,-500.0,0.00021917,2]
[374380546,1753283445425,-460.0,0.00021917,2]
[374380547,1753283445435,-460.0,0.00021917,2]
[374380548,1753283445444,-467.67,0.00021917,2]
[374380549,1753283445454,-8042.37,0.00021917,2]
[374380550,1753283445464,-460.0,0.00021917,2]
[374380551,1753283445474,-460.0,0.00021917,2]
[374380552,1753283445483,-460.0,0.00021917,2]
[374380553,1753283445493,-460.0,0.00021917,2]
[374380554,1753283445502,-460.0,0.00021917,2]
[374380555,1753283445512,-1762.47,0.00021917,2]
[374380556,1753283445522,-460.0,0.00021917,2]
[374380557,1753283445532,-460.0,0.00021917,2]
[374380558,1753283445541,-460.0,0.00021917,2]
[374380559,1753283445551,-2363.56,0.00021917,2]
[374380560,1753283445561,-2072.7,0.00021917,2]
[374380561,1753283445571,-460.0,0.00021917,2]
[374380562,1753283445581,-460.0,0.00021917,2]
[374380563,1753283445590,-460.0,0.00021917,2]
[374380564,1753283445601,-460.0,0.00021917,2]
[374380565,1753283445611,-1586.54,0.00021917,2]
[374380566,1753283445621,-1711.56,0.00021917,2]
[374380567,1753283445630,-460.0,0.00021917,2]
[374380568,1753283445639,-460.0,0.00021917,2]
[374380569,1753283445649,-2071.11,0.00021917,2]
[374380570,1753283445661,-460.0,0.00021917,2]
[374380571,1753283445670,-314.31863649,0.00021917,2]
[374380572,1753283445680,-460.0,0.00021917,2]
[374380573,1753283445690,-564.07,0.00021917,2]
[374380574,1753283445700,-460.0,0.00021917,2]
[374380575,1753283445709,-891.31,0.00021917,2]
[374380576,1753283445719,-1322.9240316,0.00021918,7]
[374380577,1753283445728,-150.46368495,0.00021918,2]
[374380578,1753283445738,-200.0,0.00021918,2]
[374380579,1753283445747,-2742.02636492,0.00021939,2]
[374380580,1753283445757,-500.0,0.00021973,2]
[374380581,1753283445766,-500.0,0.00021973,2]
[374380582,1753283445776,-158.27900585,0.00021973,2]
[374380583,1753283445786,-500.0,0.00021973,2]
[374380584,1753283445795,-500.0,0.00021973,2]
[374380585,1753283445805,-3410.41,0.00022,7]
[374380586,1753283445815,-1595.1,0.00022,7]
[374380587,1753283445824,-39436.15,0.00022,2]
[374380588,1753283445834,-12176.83,0.00022,7]
[374380589,1753283445843,-214.67886746,0.00022,7]
[374380590,1753283445852,-272.02685,0.00022,3]
[374380591,1753283445862,-272.02685,0.00022,3]
[374380592,1753283445872,-12622.36869388,0.00022,7]
[374380593,1753283445882,-1094.79640088,0.00022006,2]
[374380594,1753283445891,-151.0,0.000221,6]
[374380595,1753283445901,-2023.9,0.00022184,5]
[374380596,1753283445914,-460.0,0.00022191,2]
[374380597,1753283445924,-467.67,0.00022191,2]
[374380598,1753283445934,-8042.37,0.00022191,2]
[374380599,1753283445944,-460.0,0.00022191,2]
[374380600,1753283445954,-460.0,0.00022191,2]
[374380601,1753283445963,-460.0,0.00022191,2]
[374380602,1753283445973,-460.0,0.00022191,2]
[374380603,1753283445982,-460.0,0.00022191,2]
[374380604,1753283445992,-1762.47,0.00022191,2]
[374380605,1753283446002,-460.0,0.00022191,2]
[374380606,1753283446011,-460.0,0.00022191,2]
[374380607,1753283446021,-2363.56,0.00022191,2]
[374380608,1753283446031,-2072.7,0.00022191,2]
[374380609,1753283446040,-460.0,0.00022191,2]
[374380610,1753283446050,-460.0,0.00022191,2]
[374380611,1753283446059,-460.0,0.00022191,2]
[374380612,1753283446069,-1586.54,0.00022191,2]
[374380613,1753283446078,-1711.56,0.00022191,2]
[374380614,1753283446088,-460.0,0.00022191,2]
[374380615,1753283446100,-460.0,0.00022191,2]
[374380616,1753283446111,-2071.11,0.00022191,2]
[374380617,1753283446121,-460.0,0.00022191,2]
[374380618,1753283446130,-460.0,0.00022191,2]
[374380620,1753283446142,-564.07,0.00022191,2]
[374380622,1753283446151,-460.0,0.00022191,2]
[374380623,1753283446163,-891.31,0.00022191,2]
[374380625,1753283446175,-178.31,0.00022258,2]
[374380627,1753283446184,-151.0,0.000223,9]
[374380629,1753283446194,-460.0,0.00022351,2]
[374380631,1753283446203,-460.0,0.00022465,2]
[374380633,1753283446213,-467.67,0.00022465,2]
[374380635,1753283446222,-8042.37,0.00022465,2]
[374380637,1753283446231,-460.0,0.00022465,2]
[374380639,1753283446241,-460.0,0.00022465,2]
[374380641,1753283446251,-460.0,0.00022465,2]
[374380643,1753283446260,-460.0,0.00022465,2]
[374380645,1753283446269,-460.0,0.00022465,2]
[374380647,1753283446278,-1762.47,0.00022465,2]
[374380649,1753283446288,-460.0,0.00022465,2]
[374380651,1753283446297,-2363.56,0.00022465,2]
[374380653,1753283446307,-2072.7,0.00022465,2]
[374380656,1753283446317,-460.0,0.00022465,2]
[374380658,1753283446326,-522.36,0.00022465,2]
[374380660,1753283446336,-460.0,0.00022465,2]
[374380662,1753283446346,-1586.54,0.00022465,2]
[374380664,1753283446355,-1711.56,0.00022465,2]
[374380666,1753283446364,-460.0,0.00022465,2]
[374380668,1753283446374,-460.0,0.00022465,2]
[374380670,1753283446383,-2071.11,0.00022465,2]
[374380672,1753283446393,-460.0,0.00022465,2]
[374380674,1753283446402,-564.07,0.00022465,2]
[374380676,1753283446413,-460.0,0.00022465,2]
[374380678,1753283446422,-2369.65,0.00022465,2]
[374380680,1753283446432,-891.31,0.00022465,2]
[374380682,1753283446441,-2023.9,0.00022508,5]
[374380684,1753283446450,-1000.0,0.00022521,2]
[374380686,1753283446459,-1000.0,0.00022521,2]
[374380688,1753283446469,-500.0,0.00022569,2]
[374380690,1753283446478,-500.0,0.00022569,2]
[374380692,1753283446488,-269.31324823,0.00022569,2]
[374380694,1753283446497,-502.75,0.00022569,7]
[374380696,1753283446508,-725.46,0.00022569,2]
[374380698,1753283446518,-681.31785305,0.0002258,2]
[374380699,1753283446528,-348.21195986,0.00022603,2]
[374380701,1753283446537,-587.0,0.0002265,2]
[374380703,1753283446547,-644.41561795,0.00022657,2]
[374380705,1753283446557,-500.0,0.00022657,2]
[374380707,1753283446567,-386.60069791,0.00022657,2]
[374380708,1753283446576,-552.78730248,0.00022657,2]
[374380709,1753283446585,-500.0,0.00022657,2]
[374380710,1753283446594,-500.0,0.00022657,2]
[374380711,1753283446603,-500.0,0.00022657,2]
[374380712,1753283446613,-641.49978633,0.00022657,2]
[374380713,1753283446622,-500.0,0.00022657,2]
[374380714,1753283446632,-500.0,0.00022657,2]
[374380715,1753283446641,-500.0,0.00022657,2]
[374380716,1753283446650,-500.0,0.00022657,2]
[374380717,1753283446660,-500.0,0.00022657,2]
[374380718,1753283446669,-500.0,0.00022657,2]
[374380719,1753283446679,-500.0,0.00022657,2]
[374380721,1753283446688,-156.64231511,0.00022657,2]
[374380723,1753283446697,-500.0,0.00022657,2]
[374380725,1753283446707,-502.75,0.00022669,7]
[374380727,1753283446716,-725.46,0.00022669,2]
[374380729,1753283446726,-500.0,0.00022675,2]
[374380731,1753283446735,-500.0,0.000227,2]
[374380733,1753283446744,-500.0,0.000227,2]
[374380735,1753283446754,-500.0,0.000227,2]
[374380737,1753283446765,-500.0,0.000227,2]
[374380739,1753283446774,-500.0,0.000227,2]
[374380741,1753283446785,-500.0,0.000227,2]
[374380743,1753283446795,-500.0,0.000227,2]
[374380745,1753283446805,-500.0,0.000227,2]
[374380747,1753283446814,-500.0,0.000227,2]
[374380750,1753283446823,-500.0,0.000227,2]
[374380752,1753283446832,-500.0,0.000227,2]
[374380754,1753283446842,-500.0,0.000227,2]
[374380756,1753283446851,-500.0,0.000227,2]
[374380758,1753283446860,-500.0,0.000227,2]
[374380760,1753283446869,-500.0,0.000227,2]
[374380761,1753283446879,-500.0,0.000227,2]
[374380764,1753283446888,-500.8524135,0.000227,2]
[374380766,1753283446898,-500.0,0.000227,2]
[374380768,1753283446910,-500.0,0.000227,2]
[374380770,1753283446919,-500.0,0.000227,2]
[374380772,1753283446929,-411.20190739,0.00022739,2]
[374380774,1753283446938,-467.67,0.00022739,2]
[374380776,1753283446947,-8042.37,0.00022739,2]
[374380778,1753283446956,-460.0,0.00022739,2]
[374380780,1753283446966,-460.0,0.00022739,2]
[374380782,1753283446975,-460.0,0.00022739,2]
[374380784,1753283446986,-460.0,0.00022739,2]
[374380786,1753283446994,-1762.47,0.00022739,2]
[374380788,1753283447004,-460.0,0.00022739,2]
[374380790,1753283447013,-2363.56,0.00022739,2]
[374380792,1753283447023,-2072.7,0.00022739,2]
[374380794,1753283447032,-460.0,0.00022739,2]
[374380796,1753283447042,-460.0,0.00022739,2]
[374380798,1753283447051,-1586.54,0.00022739,2]
[374380800,1753283447060,-1711.56,0.00022739,2]
[374380802,1753283447070,-460.0,0.00022739,2]
[374380804,1753283447079,-460.0,0.00022739,2]
[374380806,1753283447089,-2071.11,0.00022739,2]
[374380808,1753283447103,-460.0,0.00022739,2]
[374380810,1753283447112,-564.07,0.00022739,2]
[374380812,1753283447121,-460.0,0.00022739,2]
[374380814,1753283447131,-891.31,0.00022739,2]
[374380816,1753283447141,-502.75,0.00022769,3]
[374380819,1753283447150,-725.46,0.00022769,2]
[374380822,1753283447162,-500.0,0.00022824,2]
[374380824,1753283447172,-500.94168668,0.00022824,2]
[374380826,1753283447181,-500.0,0.00022824,2]
[374380828,1753283447190,-500.0,0.00022824,2]
[374380830,1753283447200,-2023.9,0.00022832,6]
[374380832,1753283447209,-502.75,0.00022869,6]
[374380834,1753283447218,-725.46,0.00022869,4]
[374380836,1753283447228,-560.0,0.00022899,2]
[374380838,1753283447237,-151.0,0.000229,5]
[374380840,1753283447247,-500.0,0.00022908,2]
[374380842,1753283447255,-502.75,0.00022969,7]
[374380844,1753283447265,-725.46,0.00022969,3]
[374380846,1753283447274,-160.0,0.00023,2]
[374380848,1753283447283,-1290.34934213,0.00023009,2]
[374380850,1753283447292,-467.67,0.00023013,2]
[374380852,1753283447301,-8042.37,0.00023013,2]
[374380854,1753283447311,-460.0,0.00023013,2]
[374380857,1753283447321,-460.0,0.00023013,2]
[374380859,1753283447331,-460.0,0.00023013,2]
[374380861,1753283447340,-460.0,0.00023013,2]
[374380863,1753283447350,-1762.47,0.00023013,2]
[374380865,1753283447359,-460.0,0.00023013,2]
[374380867,1753283447368,-2363.56,0.00023013,2]
[374380869,1753283447378,-2072.7,0.00023013,2]
[374380871,1753283447388,-460.0,0.00023013,2]
[374380873,1753283447397,-460.0,0.00023013,2]
[374380875,1753283447406,-1586.54,0.00023013,2]
[374380876,1753283447416,-1711.56,0.00023013,2]
[374380879,1753283447425,-460.0,0.00023013,2]
[374380881,1753283447435,-460.0,0.00023013,2]
[374380883,1753283447444,-2071.11,0.00023013,2]
[374380884,1753283447454,-460.0,0.00023013,2]
[374380887,1753283447463,-564.07,0.00023013,2]
[374380888,1753283447472,-460.0,0.00023013,2]
[374380891,1753283447482,-891.31,0.00023013,2]
[374380892,1753283447491,-272.02685,0.00023053,6]
[374380893,1753283447500,-272.02685,0.00023053,6]
[374380894,1753283447509,-719.84913514,0.00023068,2]
[374380895,1753283447518,-487.26539813,0.00023068,2]
[374380896,1753283447527,-502.75,0.00023069,3]
[374380897,1753283447537,-725.46,0.00023069,3]
[374380898,1753283447547,-308.34046914,0.00023117,2]
[374380899,1753283447557,-1000.0,0.00023117,2]
[374380900,1753283447566,-215.0738,0.00023147,2]
[374380901,1753283447575,-151.0,0.00023147,2]
[374380902,1753283447585,-151.0,0.00023147,2]
[374380904,1753283447594,-151.0,0.00023147,2]
[374380906,1753283447603,-151.0,0.00023147,2]
[374380908,1753283447613,-151.0,0.00023147,2]
[374380910,1753283447622,-151.0,0.00023147,2]
[374380912,1753283447631,-151.0,0.00023147,2]
[374380914,1753283447640,-151.0,0.00023147,2]
[374380916,1753283447649,-279.85335205,0.00023147,2]
[374380918,1753283447659,-151.0,0.00023147,2]
[374380920,1753283447669,-151.0,0.00023147,2]
[374380922,1753283447678,-151.0,0.00023147,2]
[374380924,1753283447687,-151.0,0.00023147,2]
[374380926,1753283447696,-151.0,0.00023147,2]
[374380928,1753283447705,-151.0,0.00023147,2]
[374380930,1753283447715,-151.0,0.00023147,2]
[374380932,1753283447723,-151.0,0.00023147,2]
[374380934,1753283447732,-151.0,0.00023147,2]
[374380936,1753283447741,-151.0,0.00023147,2]
[374380938,1753283447752,-151.0,0.00023147,2]
[374380940,1753283447764,-151.0,0.00023147,2]
[374380942,1753283447773,-151.0,0.00023147,2]
[374380944,1753283447782,-151.0,0.00023147,2]
[374380946,1753283447792,-25000.0,0.00023147,2]
[374380948,1753283447801,-151.0,0.00023147,2]
[374380950,1753283447810,-151.0,0.00023147,2]
[374380952,1753283447819,-151.0,0.00023147,2]
[374380954,1753283447828,-151.0,0.00023147,2]
[374380956,1753283447837,-151.0,0.00023147,2]
[374380958,1753283447846,-151.0,0.00023147,2]
[374380960,1753283447855,-272.02685,0.00023148,3]
[374380962,1753283447865,-272.02685,0.00023148,3]
[374380964,1753283447875,-213.98,0.00023148,2]
[374380966,1753283447884,-156.366059,0.00023152,6]
[374380968,1753283447893,-2023.9,0.00023155,6]
[374380970,1753283447903,-1426.108351,0.00023169,7]
[374380972,1753283447915,-1426.108351,0.00023169,7]
[374380974,1753283447924,-502.75,0.00023169,5]
[374380976,1753283447933,-725.46,0.00023169,3]
[374380979,1753283447944,-526.15909479,0.0002317,3]
[374380980,1753283447954,-160.0,0.0002317,3]
[374380983,1753283447963,-160.0,0.000232,3]
[374380985,1753283447973,-215.84326551,0.000232,3]
[374380987,1753283447982,-231.11583447,0.000232,3]
[374380989,1753283447992,-12622.36869388,0.000232,3]
[374381000,1753283448098,-1000.89543393,0.00023205,2]
[374381001,1753283448120,-1000.0,0.00023205,2]